fUST/lending_fUST_20250301
["ID","MTS","AMOUNT","RATE_DAILY","PERIOD"]
[354935464,1740832243625,-500.0,0.00031886,2]
[354935465,1740832243635,-500.0,0.00031886,2]
[354935466,1740832243645,-500.0,0.00031886,2]
[354935467,1740832243655,-500.0,0.00031886,2]
[354935468,1740832243664,-500.0,0.00031886,2]
[354935469,1740832243673,-552.91,0.00031886,2]
[354935470,1740832243683,-515.58,0.00031886,2]
[354935471,1740832243694,-500.0,0.00031886,2]
[354935472,1740832243704,-500.0,0.00031886,2]
[354935473,1740832243714,-538.4,0.00031886,2]
[354935474,1740832243723,-502.9266679,0.00031886,2]
[354935475,1740832243733,-500.0,0.00031886,2]
[354935476,1740832243742,-1250.54,0.00031886,2]
[354935477,1740832243751,-500.0,0.00031886,2]
[354935478,1740832243761,-500.0,0.00031886,2]
[354935479,1740832243771,-895.0,0.00031886,2]
[354935480,1740832243781,-500.0,0.00031886,2]
[354935481,1740832243790,-553.14,0.00031886,2]
[354935482,1740832243800,-1111.46,0.00031887,2]
[354935483,1740832243810,-500.0,0.00031887,2]
[354935484,1740832243819,-500.0,0.00031887,2]
[354935485,1740832243829,-728.36,0.00031887,2]
[354935486,1740832243839,-500.0,0.00031887,2]
[354935487,1740832243848,-500.0,0.00031887,2]
[354935488,1740832243858,-1066.98,0.00031887,2]
[354935489,1740832243868,-500.0,0.00031887,2]
[354935490,1740832243878,-500.0,0.00031887,2]
[354935492,1740832243887,-872.63,0.00031887,2]
[354935493,1740832243897,-500.0,0.00031887,2]
[354935495,1740832243906,-500.0,0.00031887,2]
[354935496,1740832243916,-500.0,0.00031887,2]
[354935497,1740832243926,-500.0,0.00031887,2]
[354935498,1740832243935,-500.0,0.00031887,2]
[354935499,1740832243944,-500.0,0.00031887,2]
[354935500,1740832243954,-500.0,0.00031887,2]
[354935501,1740832243964,-1005.96,0.00031887,2]
[354935502,1740832243974,-500.0,0.00031887,2]
[354935503,1740832243983,-712.63,0.00031887,2]
[354935504,1740832243993,-500.0,0.00031887,2]
[354935505,1740832244003,-500.0,0.00031887,2]
[354935506,1740832244013,-500.0,0.00031887,2]
[354935507,1740832244023,-500.0,0.00031887,2]
[354935508,1740832244032,-500.0,0.00031887,2]
[354935509,1740832244042,-500.0,0.00031887,2]
[354935510,1740832244051,-500.0,0.00031887,2]
[354935511,1740832244061,-614.58,0.00031887,2]
[354935512,1740832244365,-500.0,0.00031887,2]
[354935513,1740832244391,-500.0,0.00031887,2]
[354935514,1740832244402,-833.68,0.00031887,2]
[354935515,1740832244412,-500.0,0.00031887,2]
[354935516,1740832244422,-500.0,0.00031887,2]
[354935517,1740832244431,-500.0,0.00031887,2]
[354935518,1740832244441,-500.0,0.00031887,2]
[354935519,1740832244451,-768.48,0.00031887,2]
[354935520,1740832244463,-500.0,0.00031887,2]
[354935521,1740832244473,-524.08,0.00031887,2]
[354935522,1740832244482,-500.0,0.00031887,2]
[354935523,1740832244492,-500.0,0.00031887,2]
[354935524,1740832244502,-537.77,0.00031887,2]
[354935525,1740832244512,-500.0,0.00031887,2]
[354935526,1740832244522,-500.0,0.00031887,2]
[354935527,1740832244532,-500.0,0.00031887,2]
[354935528,1740832244542,-2172.26,0.00031887,2]
[354935529,1740832244552,-500.0,0.00031887,2]
[354935530,1740832244562,-500.0,0.00031887,2]
[354935531,1740832244572,-1568.47,0.00031887,2]
[354935532,1740832244582,-1625.53,0.00031887,2]
[354935533,1740832244592,-504.67756122,0.00031887,2]
[354935534,1740832244602,-292.87633386,0.00031887,2]
[354935535,1740832244614,-500.0,0.00031887,2]
[354935536,1740832244625,-500.0,0.00031887,2]
[354935537,1740832244634,-913.31,0.00031887,2]
[354935538,1740832244644,-524.72,0.00031887,2]
[354935539,1740832244654,-2447.53,0.00031887,2]
[354935540,1740832244664,-500.0,0.00031887,2]
[354935541,1740832244674,-500.0,0.00031887,2]
[354935542,1740832244683,-505.9774851,0.00031887,2]
[354935543,1740832244694,-500.0,0.00031887,2]
[354935544,1740832244707,-500.0,0.00031887,2]
[354935545,1740832244716,-500.0,0.00031887,2]
[354935546,1740832244726,-832.4,0.00031887,2]
[354935547,1740832244735,-500.0,0.00031887,2]
[354935548,1740832244745,-729.7,0.00031887,2]
[354935549,1740832244755,-500.0,0.00031887,2]
[354935550,1740832244764,-500.0,0.00031887,2]
[354935551,1740832244774,-500.0,0.00031887,2]
[354935552,1740832244784,-1266.62,0.00031887,2]
[354935553,1740832244793,-1754.68,0.00031887,2]
[354935554,1740832244803,-756.81,0.00031887,2]
[354935555,1740832244812,-500.0,0.00031887,2]
[354935556,1740832244823,-5255.56,0.00031887,2]
[354935557,1740832244832,-774.41,0.00031887,2]
[354935558,1740832244842,-504.28648906,0.00031888,2]
[354935559,1740832244852,-357.93326803,0.00031888,2]
[354935560,1740832244862,-500.0,0.00031888,2]
[354935561,1740832244872,-500.0,0.00031888,2]
[354935563,1740832244882,-500.0,0.00031888,2]
[354935565,1740832244892,-500.0,0.00031888,2]
[354935567,1740832244901,-503.42800636,0.00031888,2]
[354935569,1740832244911,-558.2776123,0.00031888,2]
[354935570,1740832244921,-500.0,0.00031888,2]
[354935572,1740832244930,-500.0,0.00031888,2]
[354935574,1740832244940,-504.89299059,0.00031888,2]
[354935575,1740832244950,-500.0,0.00031888,2]
[354935576,1740832244961,-237.51748074,0.00031888,2]
[354935578,1740832244970,-500.0,0.00031888,2]
[354935580,1740832244979,-500.0,0.00031888,2]
[354935582,1740832244989,-500.0,0.00031888,2]
[354935584,1740832245000,-500.0,0.00031888,2]
[354935585,1740832245009,-500.0,0.00031888,2]
[354935587,1740832245019,-500.0,0.00031888,2]
[354935589,1740832245028,-522.63359419,0.00031888,2]
[354935591,1740832245038,-500.0,0.00031888,2]
[354935593,1740832245048,-500.0,0.00031888,2]
[354935594,1740832245057,-500.0,0.00031888,2]
[354935596,1740832245067,-1000.0,0.00031888,2]
[354935597,1740832245077,-500.0,0.00031888,2]
[354935598,1740832245087,-415.31937611,0.00031888,2]
[354935599,1740832245097,-500.0,0.00031888,2]
[354935600,1740832245106,-500.0,0.00031888,2]
[354935601,1740832245116,-500.0,0.00031888,2]
[354935602,1740832245126,-500.0,0.00031888,2]
[354935603,1740832245135,-500.0,0.00031888,2]
[354935604,1740832245145,-500.0,0.00031888,2]
[354935605,1740832245155,-500.0,0.00031888,2]
[354935606,1740832245164,-500.0,0.00031888,2]
[354935607,1740832245174,-500.0,0.00031888,2]
[354935608,1740832245184,-1010.61,0.00031888,2]
[354935609,1740832245194,-826.88,0.00031888,2]
[354935610,1740832245204,-500.0,0.00031888,2]
[354935611,1740832245214,-500.0,0.00031888,2]
[354935612,1740832245224,-500.0,0.00031888,2]
[354935613,1740832245233,-500.0,0.00031888,2]
[354935614,1740832245243,-500.0,0.00031888,2]
[354935615,1740832245252,-500.0,0.00031888,2]
[354935616,1740832245262,-500.0,0.00031888,2]
[354935617,1740832245271,-500.0,0.00031888,2]
[354935618,1740832245281,-502.81663997,0.00031888,2]
[354935619,1740832245291,-500.0,0.00031888,2]
[354935620,1740832245301,-500.0,0.00031888,2]
[354935621,1740832245310,-500.0,0.00031888,2]
[354935622,1740832245320,-500.0,0.00031888,2]
[354935623,1740832245329,-500.0,0.00031888,2]
[354935624,1740832245339,-500.0,0.00031888,2]
[354935625,1740832245348,-500.0,0.00031888,2]
[354935626,1740832245358,-500.0,0.00031888,2]
[354935627,1740832245367,-500.0,0.00031888,2]
[354935628,1740832245377,-500.0,0.00031888,2]
[354935629,1740832245386,-500.0,0.00031888,2]
[354935630,1740832245396,-500.0,0.00031888,2]
[354935631,1740832245406,-672.15,0.00031888,2]
[354935632,1740832245417,-500.0,0.00031888,2]
[354935633,1740832245426,-500.0,0.00031888,2]
[354935634,1740832245435,-435.64789553,0.00031888,2]
[354935654,1740832246462,-494.18,0.00031499,2]
[354935656,1740832246476,-15.99092007,0.00031499,2]
[354935657,1740832246486,-500.0,0.00031499,2]
[354935659,1740832246496,-500.0,0.00031773,2]
[354935660,1740832246506,-734.2,0.00031885,2]
[354935662,1740832246515,-64.35210447,0.00031888,2]
[354935663,1740832246586,-500.0,0.00031888,2]
[354935664,1740832246597,-560.61,0.00031888,2]
[354935665,1740832246608,-500.0,0.00031888,2]
[354935667,1740832246622,-423.14197773,0.00031888,2]
[354935689,1740833231122,-250.0,0.00029097,2]
[354935690,1740833231146,-450.0,0.00029287,2]
[354935691,1740833231170,-153.68059,0.00029302,40]
[354935692,1740833231193,-194.752693,0.00029364,2]
[354935693,1740833231217,-300.0,0.00029375,2]
[354935694,1740833231240,-4989.81586688,0.00029376,2]
[354935695,1740833245136,-3739.10282976,0.00029376,2]
[354935704,1740833350097,-178.47231622,0.00027276,2]
[354935705,1740833350119,-615.01521066,0.00028,30]
[354935706,1740833350140,-300.0,0.00029313,2]
[354935707,1740833350173,-19667.1535976,0.00029314,2]
[354935708,1740833350193,-1271.08130336,0.00029376,2]
[354935709,1740833350214,-2107.0588245,0.00029459,2]
[354935710,1740833350234,-414.9952781,0.00029701,120]
[354935711,1740833350255,-2792.4920305,0.00029844,40]
[354935718,1740833356917,153.68059,0.00029302,40]
[354935737,1740833431877,-3646.1651265,0.00029994,2]
[354935739,1740833431889,-971.58878315,0.00031,10]
[354935741,1740833431901,-500.0,0.00031,10]
[354935743,1740833431913,-18494.98851587,0.00031,2]
[354935752,1740833437736,-476.7031871,0.00030999,2]
[354935753,1740833437747,-500.0,0.00030999,2]
[354935754,1740833437758,-500.0,0.00030999,2]
[354935755,1740833437769,-500.0,0.00030999,2]
[354935756,1740833437781,-452.57725564,0.00030999,2]
[354935760,1740833438331,-500.0,0.00030999,2]
[354935761,1740833438352,-500.0,0.00030999,2]
[354935762,1740833438373,-500.0,0.00030999,2]
[354935763,1740833438390,-500.0,0.00030999,2]
[354935764,1740833438399,-500.0,0.00030999,2]
[354935765,1740833438410,-500.0,0.00030999,2]
[354935766,1740833438419,-500.0,0.00030999,2]
[354935767,1740833438429,-500.0,0.00030999,2]
[354935768,1740833438439,-500.0,0.00030999,2]
[354935769,1740833438448,-500.0,0.00030999,2]
[354935770,1740833438458,-500.0,0.00030999,2]
[354935771,1740833438467,-500.0,0.00030999,2]
[354935772,1740833438476,-500.0,0.00030999,2]
[354935773,1740833438486,-500.0,0.00030999,2]
[354935774,1740833438495,-336.29233387,0.00030999,2]
[354935775,1740833438504,-500.0,0.00030999,2]
[354935776,1740833438514,-500.0,0.00030999,2]
[354935777,1740833438524,-500.0,0.00030999,2]
[354935778,1740833438533,-500.0,0.00030999,2]
[354935779,1740833438543,-500.0,0.00030999,2]
[354935780,1740833438552,-500.0,0.00030999,2]
[354935781,1740833438562,-500.0,0.00030999,2]
[354935782,1740833438572,-500.0,0.00030999,2]
[354935783,1740833438582,-500.0,0.00030999,2]
[354935784,1740833438592,-80258.78879091,0.00031,2]
[354935785,1740833438604,-24452.84777383,0.00031,2]
[354936090,1740833442882,-190.05,0.0003099,3]
[354936092,1740833442891,-322.14151093,0.00031,2]
[354938953,1740834436095,-150.0,0.000289,2]
[354938954,1740834436117,-236.009671,0.0002941,2]
[354938955,1740834436140,-2870.035015,0.00029504,2]
[354938956,1740834436161,-1334.92836003,0.00029559,2]
[354938957,1740834449105,-215.07163997,0.00029559,2]
[354938958,1740834449125,-1862.87097916,0.000301,7]
[354938959,1740834449147,-400.0,0.00030109,2]
[354938960,1740834449168,-1646.03966192,0.00030111,2]
[354938961,1740834449190,-211.20769769,0.00030137,2]
[354938962,1740834449389,-1002.0,0.00030137,2]
[354938963,1740834449414,-151.0,0.000308,2]
[354938964,1740834449437,-911.1,0.000308,7]
[354938965,1740834449458,-118.99980585,0.0003095,10]
[354938969,1740834548091,-168.98154414,0.000287,2]
[354939020,1740834632241,-153.68059,0.00029992,15]
[354939022,1740834632252,-329.86301,0.0003095,10]
[354939027,1740834632298,-51.13718415,0.0003095,10]
[354939029,1740834632307,-400.0,0.00030972,2]
[354939030,1740834632317,-500.0,0.00030973,5]
[354939031,1740834632326,-500.0,0.00030973,5]
[354939032,1740834632336,-500.0,0.00030973,5]
[354939033,1740834632346,-281.2874625,0.00030973,5]
[354939034,1740834632355,-500.0,0.00030973,3]
[354939035,1740834632365,-500.0,0.00030973,5]
[354939036,1740834632374,-500.0,0.00030973,5]
[354939037,1740834632383,-500.0,0.00030973,5]
[354939038,1740834632392,-500.0,0.00030973,5]
[354939039,1740834632402,-500.0,0.00030973,5]
[354939040,1740834632412,-158.38,0.00030989,3]
[354939041,1740834632424,-475.14,0.00030989,3]
[354939042,1740834632434,-500.0,0.00030998,2]
[354939043,1740834632443,-445.1863308,0.00030998,2]
[354939065,1740834638030,-481.06837296,0.00030997,2]
[354939067,1740834638039,-163.81910804,0.00030998,2]
[354939095,1740834638307,-336.18089196,0.00030998,2]
[354939097,1740834638317,-538.07352855,0.00030998,2]
[354939737,1740834646279,-1224.69647145,0.00030998,2]
[354939741,1740834646288,-1631.34,0.00030998,2]
[354939744,1740834646298,-3592.54,0.00030998,2]
[354939746,1740834646309,-583.13,0.00030998,2]
[354939748,1740834646318,-500.0,0.00030998,2]
[354939750,1740834646327,-1153.05,0.00030998,2]
[354939751,1740834646337,-500.0,0.00030998,2]
[354939752,1740834646346,-500.0,0.00030998,2]
[354939753,1740834646356,-500.0,0.00030998,2]
[354939754,1740834646365,-500.0,0.00030998,2]
[354939755,1740834646375,-15923.46,0.00030998,2]
[354939756,1740834646385,-500.0,0.00030998,2]
[354939757,1740834646395,-2803.6,0.00030998,2]
[354939758,1740834646404,-500.0,0.00030998,2]
[354939760,1740834646414,-9472.01,0.00030998,2]
[354939762,1740834646426,-347.69873514,0.00030998,5]
[354939764,1740834646441,-907.58126486,0.00030998,5]
[354939766,1740834646450,-500.0,0.00030998,2]
[354939768,1740834646461,-5220.68,0.00030998,2]
[354939770,1740834646470,-7019.30143856,0.00030998,2]
[354940155,1740835591543,-153.68059,0.00028352,15]
[354940156,1740835591567,-150.0,0.00028898,2]
[354940157,1740835591590,-153.68059,0.0002928,15]
[354940158,1740835591613,-236.009671,0.00029515,2]
[354940159,1740835591641,-2276.149149,0.00029975,2]
[354940160,1740835613135,-163.77041234,0.00029975,2]
[354940161,1740835629564,-2298.49086526,0.00029975,2]
[354940162,1740835629590,-24.06913474,0.0003045,15]
[354940163,1740835654124,-6222.66499966,0.0003045,15]
[354940164,1740835691728,-1576.56,0.0003045,15]
[354940170,1740835747107,-159.00859993,0.0002835,2]
[354940171,1740835759548,2893.46030493,0.00028767,2]
[354940172,1740835759569,1512.14969507,0.00028767,2]
[354940175,1740835779110,257.0,0.00028,30]
[354940198,1740835833166,-151.18318601,0.0003,2]
[354940199,1740835833177,-1210.0,0.00030137,2]
[354940200,1740835833188,-2176.7058656,0.0003045,15]
[354940201,1740835833199,-1000.0,0.000308,10]
[354940202,1740835833210,-1000.0,0.000308,15]
[354940203,1740835833221,-316.76,0.00030886,3]
[354940204,1740835833232,-400.0,0.00030894,2]
[354940205,1740835833242,-350.94866896,0.00030895,2]
[354940206,1740835833253,-500.0,0.00030895,2]
[354940207,1740835833265,-9066.96472451,0.00030895,20]
[354940242,1740835842741,-499.58105022,0.00030895,2]
[354940243,1740835842754,-0.41894978,0.00030895,2]
[354940244,1740835842764,-500.0,0.00030895,2]
[354940245,1740835842775,-669.75749952,0.00030895,20]
[354940246,1740835842808,-2266.46253629,0.00030895,20]
[354940247,1740835842820,-1164.62232601,0.00030895,20]
[354940259,1740835843441,-6465.00000001,0.00030895,20]
[354940260,1740835843461,-432.73892352,0.00030895,2]
[354940261,1740835843473,-67.26107648,0.00030895,2]
[354940262,1740835843482,-9504.45715928,0.00030895,20]
[354940263,1740835843494,-34105.63502598,0.00030895,20]
[354940454,1740835846408,-500.0,0.00030895,2]
[354940456,1740835846418,-7940.00000002,0.00030895,20]
[354940470,1740835846551,-0.14441993,0.00030895,20]
[354942285,1740835922950,2623.03184618,0.0002,2]
[354942286,1740835922972,37.39815382,0.0002,2]
[354942288,1740835946757,1800.0,0.00028,30]
[354942289,1740835947337,1106.93498326,0.00028,30]
[354942290,1740835947357,693.06501674,0.00028,30]
[354942291,1740835947495,1800.0,0.00028,30]
[354942292,1740835948020,206.51663051,0.00028,30]
[354942293,1740835948044,1593.48336949,0.00028,30]
[354942294,1740835948398,1331.4624412,0.00028,30]
[354942295,1740835948420,468.5375588,0.00028,30]
[354942296,1740835948811,1800.0,0.00028,30]
[354942297,1740835949201,625.51142629,0.00028,30]
[354942298,1740836682100,10000.0,0.00028,10]
[354942299,1740836818228,10000.0,0.00028,10]
[354942300,1740836826134,-300.0,0.00027999,2]
[354942301,1740836826159,-1174.48857371,0.00028,30]
[354942302,1740836826184,-1800.0,0.00028,30]
[354942303,1740836826209,-1800.0,0.00028,30]
[354942304,1740836826234,-1479.93355129,0.00028,30]
[354942305,1740836841128,-320.06644871,0.00028,30]
[354942306,1740836841154,-848.44121285,0.00028,30]
[354942307,1740836853123,-258.58276726,0.00028,30]
[354942308,1740836946139,-150.0,0.000259,2]
[354942309,1740836946164,-175.33985521,0.00027996,5]
[354942310,1740836946190,-300.0,0.00027999,2]
[354942311,1740836946213,-692.97601989,0.00028,30]
[354942312,1740836946237,-1800.0,0.00028,30]
[354942313,1740836946262,-1800.0,0.00028,30]
[354942314,1740836946285,-2100.0,0.00028,30]
[354942315,1740836946307,-500.0,0.00028,30]
[354942316,1740836946330,-500.0,0.00028,30]
[354942317,1740836946357,-764.69886497,0.00028,30]
[354942318,1740836946379,-278.14207,0.0002924,2]
[354942319,1740836946402,-153.68059,0.0002976,15]
[354943336,1740837042628,-317.87519072,0.000299,5]
[354943337,1740837042638,-182.12480928,0.0003,2]
[354943380,1740837043690,-73.29021549,0.0003,2]
[354943381,1740837043710,-1500.0,0.0003,2]
[354943382,1740837043722,-18787.91694436,0.0003,2]
[354943383,1740837043731,-2300.8774624,0.00030139,2]
[354943384,1740837043741,-269.298482,0.0003038,4]
[354943385,1740837043750,-1042.93560376,0.000305,10]
[354943386,1740837043760,-1057.06174076,0.00030582,2]
[354943387,1740837043770,-1057.06174073,0.00030607,2]
[354943388,1740837043780,-1057.06174073,0.00030632,2]
[354943389,1740837043789,-1057.06174073,0.00030656,2]
[354943390,1740837043799,-591.93,0.00030672,3]
[354943391,1740837043808,-3788.34050613,0.00030681,2]
[354943392,1740837043817,-500.0,0.00030681,2]
[354943393,1740837043827,-535.94966363,0.00030681,2]
[354943395,1740837043836,-3788.34050613,0.00030681,2]
[354943397,1740837043846,-3788.34050613,0.00030681,2]
[354943398,1740837043856,-3788.34050613,0.00030681,2]
[354943399,1740837043865,-500.0,0.00030681,2]
[354943401,1740837043874,-3788.34050613,0.00030681,2]
[354943403,1740837043884,-3788.34050613,0.00030681,2]
[354943405,1740837043893,-3788.34050613,0.00030681,2]
[354943407,1740837043903,-3788.34050613,0.00030681,2]
[354943409,1740837043912,-3788.34050613,0.00030681,2]
[354943411,1740837043922,-3788.34050613,0.00030681,2]
[354943413,1740837043931,-3788.34050613,0.00030681,2]
[354943415,1740837043941,-3788.34050613,0.00030681,2]
[354943417,1740837043951,-3788.34050613,0.00030681,2]
[354943418,1740837043960,-3788.34050613,0.00030681,2]
[354943419,1740837043969,-3788.34050613,0.00030681,2]
[354943420,1740837043978,-3788.34050613,0.00030681,2]
[354943421,1740837043988,-3788.34050613,0.00030681,2]
[354943422,1740837043999,-3788.34050613,0.00030681,2]
[354943423,1740837044009,-3788.34050613,0.00030681,2]
[354943424,1740837044019,-3788.34050613,0.00030681,2]
[354943425,1740837044028,-3788.34050613,0.00030681,2]
[354943426,1740837044038,-3788.34050613,0.00030681,2]
[354943427,1740837044047,-3788.34050613,0.00030681,2]
[354943428,1740837044057,-3788.34050613,0.00030681,2]
[354943429,1740837044067,-3788.34050613,0.00030681,2]
[354943430,1740837044076,-3788.34050613,0.00030681,2]
[354943431,1740837044086,-3788.34050613,0.00030681,2]
[354943432,1740837044096,-3788.34050613,0.00030681,2]
[354943433,1740837044106,-3788.34050613,0.00030681,2]
[354943434,1740837044116,-3788.34050613,0.00030681,2]
[354943435,1740837044126,-3788.34050613,0.00030681,2]
[354943436,1740837044136,-3788.34050613,0.00030681,2]
[354943437,1740837044145,-3788.34050613,0.00030681,2]
[354943439,1740837044155,-3788.34050613,0.00030681,2]
[354943441,1740837044165,-3788.34050613,0.00030681,2]
[354943443,1740837044175,-439.99178478,0.00030681,2]
[354945253,1740837947133,-411.0,0.00027,2]
[354945254,1740837947157,-411.0,0.00027671,2]
[354945255,1740837947180,-300.0,0.00027999,2]
[354945256,1740837947204,-1575.98717857,0.00028,2]
[354945257,1740838028143,-2697.46544187,0.00028,2]
[354945258,1740838030088,-2307.68902756,0.00028,2]
[354945259,1740838030111,-300.0,0.00028557,2]
[354945260,1740838030132,-3739.1028298,0.00028558,2]
[354945261,1740838030155,-211.03213246,0.00028581,2]
[354945262,1740838030177,-411.0,0.00028767,2]
[354945263,1740838030198,-477.68008396,0.00029618,2]
[354945264,1740838041108,-22.31991604,0.00029618,2]
[354945265,1740838041133,-468.42455014,0.00029901,2]
[354945266,1740838041159,-500.0,0.00029999,2]
[354945267,1740838041183,-1500.0,0.0003,2]
[354945268,1740838041207,-359.22237125,0.0003,2]
[354945269,1740838044165,-1140.77762875,0.0003,2]
[354945270,1740838044187,-1500.0,0.0003,2]
[354945271,1740838044209,-22.12091537,0.0003,2]
[354945272,1740838050085,-1311.83780586,0.0003,2]
[354945273,1740838052086,-166.04127877,0.0003,2]
[354945274,1740838052108,-1500.0,0.0003,2]
[354945275,1740838052131,-969.43899796,0.0003,2]
[354945276,1740838054106,-530.56100204,0.0003,2]
[354945277,1740838054130,-1500.0,0.0003,2]
[354945278,1740838054151,-697.37515164,0.0003,2]
[354945279,1740838145119,-190.68808831,0.000279,2]
[354945280,1740838184562,2867.33445245,0.00029493,2]
[354945281,1740838184590,2855.43611169,0.00029493,2]
[354945282,1740838184613,2854.12111334,0.00029493,2]
[354945283,1740838184634,2285.34394172,0.00029493,2]
[354945284,1740838184659,2876.41740787,0.00029493,2]
[354945285,1740838184682,2818.97668093,0.00029493,2]
[354945286,1740838184704,2916.59895086,0.00029493,2]
[354945287,1740838184726,927.45597324,0.00029493,2]
[354945339,1740838233142,-316.66298194,0.00029999,2]
[354945865,1740838238794,-183.33701806,0.00029999,2]
[354945868,1740838238806,-500.0,0.00029999,2]
[354945870,1740838238819,-300.0,0.00029999,2]
[354945872,1740838238832,-802.62484836,0.0003,2]
[354945874,1740838238844,-1020.61,0.0003,2]
[354945877,1740838238856,-2425.31,0.0003,2]
[354945880,1740838238868,-4919.53660158,0.0003,2]
[354945883,1740838238883,-24564.1704856,0.0003,2]
[354945887,1740838238895,-400.0,0.00030137,60]
[354945890,1740838238907,-415.0,0.00030205,2]
[354945893,1740838238918,-2187.05034613,0.00030551,2]
[354945896,1740838238936,-251.13955115,0.00030552,2]
[354945898,1740838238950,-251.13955115,0.00030556,2]
[354945901,1740838238962,-251.13955115,0.0003056,2]
[354945903,1740838238976,-251.13955115,0.00030563,2]
[354945905,1740838238989,-251.13955115,0.00030567,2]
[354945908,1740838239001,-1553.76764963,0.00030567,4]
[354945910,1740838239013,-1553.76764963,0.00030567,4]
[354945912,1740838239026,-1553.76764963,0.00030567,4]
[354945914,1740838239039,-1553.76764963,0.00030567,4]
[354945917,1740838239051,-1553.76764963,0.00030567,4]
[354945919,1740838239063,-1553.76764963,0.00030567,4]
[354945921,1740838239075,-1553.76764963,0.00030567,4]
[354945924,1740838239088,-1553.76764963,0.00030567,4]
[354945926,1740838239100,-1553.76764963,0.00030567,4]
[354945928,1740838239113,-1553.76764963,0.00030567,4]
[354945931,1740838239125,-1553.76764963,0.00030567,4]
[354945932,1740838239137,-1553.76764963,0.00030567,4]
[354945934,1740838239149,-1553.76764963,0.00030567,4]
[354945936,1740838239161,-1553.76764963,0.00030567,4]
[354945938,1740838239173,-1553.76764963,0.00030567,4]
[354945940,1740838239185,-1553.76764963,0.00030567,4]
[354945942,1740838239197,-1553.76764963,0.00030567,4]
[354945944,1740838239209,-1553.76764963,0.00030567,4]
[354945947,1740838239222,-1553.76764963,0.00030567,4]
[354945949,1740838239235,-1553.76,0.00030567,4]
[354945951,1740838239247,-3625.45784915,0.00030567,4]
[354945954,1740838239260,-3625.45784915,0.00030567,4]
[354945956,1740838239273,-3625.45784915,0.00030567,4]
[354945958,1740838239285,-3625.45784915,0.00030567,4]
[354945960,1740838239297,-3625.45784915,0.00030567,4]
[354945963,1740838239308,-3625.45784915,0.00030567,4]
[354945965,1740838239320,-3625.45784915,0.00030567,4]
[354945967,1740838239331,-3625.45784915,0.00030567,4]
[354945968,1740838239343,-3625.45784915,0.00030567,4]
[354945970,1740838239355,-3625.45784915,0.00030567,4]
[354945972,1740838239367,-3625.45784915,0.00030567,4]
[354945975,1740838239379,-3625.45784915,0.00030567,4]
[354945977,1740838239391,-3625.45784915,0.00030567,4]
[354945979,1740838239402,-3625.45784915,0.00030567,4]
[354945981,1740838239414,-3625.45784915,0.00030567,4]
[354945983,1740838239426,-3625.45784915,0.00030567,4]
[354945985,1740838239438,-3625.45784915,0.00030567,4]
[354945987,1740838239449,-3625.45784915,0.00030567,4]
[354945990,1740838239462,-3625.45784915,0.00030567,4]
[354945992,1740838239473,-868.06063396,0.00030567,4]
[354945994,1740838239484,-868.06063396,0.00030567,4]
[354945996,1740838239495,-868.06063396,0.00030567,4]
[354945998,1740838239507,-868.06063396,0.00030567,4]
[354946000,1740838239518,-868.06063396,0.00030567,4]
[354946002,1740838239529,-868.06063396,0.00030567,4]
[354946004,1740838239539,-868.06063396,0.00030567,4]
[354946006,1740838239550,-868.06063396,0.00030567,4]
[354946008,1740838239562,-868.06063396,0.00030567,4]
[354946010,1740838239573,-868.06063396,0.00030567,4]
[354946012,1740838239584,-868.06063396,0.00030567,4]
[354946014,1740838239595,-868.06063396,0.00030567,4]